Workbook

Sheet Decal 1, 2
A1: DECISION ANALYSIS 1 | H1: IRR = CTRL-t
F2: =IF(F3=1,"Annual",IF(F3=4,"Quarterly",IF(F3=12,"Monthly",""))) -> Annual
B3: Minimum % Return: | C3: 6 | D3: Periods/Yr: | E3: =C3/F3/100 -> 0.06 | F3: 1 | G3: Effective => | H3: =(1+E3)^F3-1 -> 0.06
A5: Item | B5: First | C5: Last | D5: Dollars | F5: PV Rec. | G5: PV Exp. | H5: Cash
A6: Stave Silo | B6: 0 | D6: -60000 | E6: =IF(C6-B6<=0,D6/(1+$E$3)^B6,(PV($E$3,C6-B6+1,-D6)/(1+$E$3)^(B6-1))) -> -60000 | F6: =IF(E6<=0,0,IF(B6="",D6/(1+$E$3)^C6,E6)) -> 0 | G6: =IF(E6>=0,0,IF(B6="",D6/(1+$E$3)^C6,E6)) -> -60000 | H6: =IF(C6-B6<=0,D6,IF(B6="",D6,D6*(C6-B6+1))) -> -60000
A7: Salvage | B7: 20 | D7: =-D6*(1-2/B7)^B7 -> 7294.599275 | E7: =IF(C7-B7<=0,D7/(1+$E$3)^B7,(PV($E$3,C7-B7+1,-D7)/(1+$E$3)^(B7-1))) -> 2274.490535 | F7: 2274.490535 | G7: 0 | H7: 7294.599275
A8: Repairs | B8: 1 | C8: 20 | D8: =2%*D6 -> -1200 | E8: -13763.90546 | F8: 0 | G8: -13763.90546 | H8: -24000
A9: Taxes/Insurance | B9: 1 | C9: 20 | D9: =1.5%*D6 -> -900 | E9: -10322.9291 | F9: 0 | G9: -10322.9291 | H9: -18000
E10: 0 | F10: 0 | G10: 0 | H10: 0
E11: 0 | F11: 0 | G11: 0 | H11: 0
E12: 0 | F12: 0 | G12: 0 | H12: 0
E13: 0 | F13: 0 | G13: 0 | H13: 0
E14: 0 | F14: 0 | G14: 0 | H14: 0
E15: 0 | F15: 0 | G15: 0 | H15: 0
E16: 0 | F16: 0 | G16: 0 | H16: 0
E17: 0 | F17: 0 | G17: 0 | H17: 0
E18: 0 | F18: 0 | G18: 0 | H18: 0
E19: 0 | F19: 0 | G19: 0 | H19: 0
A20: Net PV | C20: =IF(F3=1,"Net/Yr",IF(F3=4,"Net/Qtr",IF(F3=12,"Net/Mo","Net/Period"))) -> Net/Yr | D20: Net AV | E20: =MAX(MAX(B6:B19),MAX(C6:C19)) -> 20 | F20: Net FV | G20: B/C Ratio | H20: Net Cash
A21: =SUM(F6:F19)+SUM(G6:G19) -> -81812.34402 | C21: =A21*E3*(1+E3)^E20/((1+E3)^E20-1) -> -7132.772969 | D21: =C21*((1+E3)^F3-1)/E3 -> -7132.772969 | F21: =A21*(1+E3)^E20 -> -262383.2706 | G21: =IF(SUM(G6:G19)=0,NA(),SUM(F6:F19)/SUM(G6:G19)*(-1)) -> 0.02704930619 | H21: =SUM(H6:H19) -> -94705.40072
A30: DECISION ANALYSIS 2 | H30: IRR = CTRL-u
F31: =IF(F32=1,"Annual",IF(F32=4,"Quarterly",IF(F32=12,"Monthly",""))) -> Annual
B32: Minimum % Return: | C32: 6 | D32: Periods/Yr: | E32: =C32/F32/100 -> 0.06 | F32: 1 | G32: Effective => | H32: =(1+E32)^F32-1 -> 0.06
A34: Item | B34: First | C34: Last | D34: Dollars | F34: PV Rec. | G34: PV Exp. | H34: Cash
A35: Unloader | B35: 0 | D35: -6800 | E35: =IF(C35-B35<=0,D35/(1+$E$32)^B35,(PV($E$32,C35-B35+1,-D35)/(1+$E$32)^(B35-1))) -> -6800 | F35: =IF(E35<=0,0,IF(B35="",D35/(1+$E$32)^C35,E35)) -> 0 | G35: =IF(E35>=0,0,IF(B35="",D35/(1+$E$32)^C35,E35)) -> -6800 | H35: =IF(C35-B35<=0,D35,IF(B35="",D35,D35*(C35-B35+1))) -> -6800
A36: Salvage | D36: 0 | E36: =IF(C36-B36<=0,D36/(1+$E$32)^B36,(PV($E$32,C36-B36+1,-D36)/(1+$E$32)^(B36-1))) -> 0 | F36: =IF(E36<=0,0,IF(B36="",D36/(1+$E$32)^C36,E36)) -> 0 | G36: =IF(E36>=0,0,IF(B36="",D36/(1+$E$32)^C36,E36)) -> 0 | H36: 0
A37: Repairs | B37: 1 | C37: 8 | D37: =5%*D35 -> -340 | E37: -2111.329896 | F37: 0 | G37: -2111.329896 | H37: -2720
A38: Taxes/Insurance | B38: 1 | C38: 8 | D38: =1.5%*D35 -> -102 | E38: -633.3989687 | F38: 0 | G38: -633.3989687 | H38: -816
E39: 0 | F39: 0 | G39: 0 | H39: 0
E40: 0 | F40: 0 | G40: 0 | H40: 0
E41: 0 | F41: 0 | G41: 0 | H41: 0
E42: 0 | F42: 0 | G42: 0 | H42: 0
E43: 0 | F43: 0 | G43: 0 | H43: 0
E44: 0 | F44: 0 | G44: 0 | H44: 0
E45: 0 | F45: 0 | G45: 0 | H45: 0
E46: 0 | F46: 0 | G46: 0 | H46: 0
E47: 0 | F47: 0 | G47: 0 | H47: 0
E48: 0 | F48: 0 | G48: 0 | H48: 0
A49: Net PV | C49: =IF(F32=1,"Net/Yr",IF(F32=4,"Net/Qtr",IF(F32=12,"Net/Mo","Net/Period"))) -> Net/Yr | D49: Net AV | E49: =MAX(MAX(B35:B48),MAX(C35:C48)) -> 8 | F49: Net FV | G49: B/C Ratio | H49: Net Cash
A50: =SUM(F35:F48)+SUM(G35:G48) -> -9544.728864 | C50: =A50*E32*(1+E32)^E49/((1+E32)^E49-1) -> -1537.04441 | D50: =C50*((1+E32)^F32-1)/E32 -> -1537.04441 | F50: =A50*(1+E32)^E49 -> -15212.84772 | G50: =IF(SUM(G35:G48)=0,NA(),SUM(F35:F48)/SUM(G35:G48)*(-1)) -> 0 | H50: =SUM(H35:H48) -> -10336

Sheet Decal 3, 4
A1: DECISION ANALYSIS 3 | H1: IRR = CTRL-w
F2: =IF(F3=1,"Annual",IF(F3=4,"Quarterly",IF(F3=12,"Monthly",""))) -> Annual
B3: Minimum % Return: | C3: 6 | D3: Periods/Yr: | E3: =C3/F3/100 -> 0.06 | F3: 1 | G3: Effective => | H3: =(1+E3)^F3-1 -> 0.06
A5: Item | B5: First | C5: Last | D5: Dollars | F5: PV Rec. | G5: PV Exp. | H5: Cash
A6: Stave Silo | B6: 0 | D6: -60000 | E6: =IF(C6-B6<=0,D6/(1+$E$3)^B6,(PV($E$3,C6-B6+1,-D6)/(1+$E$3)^(B6-1))) -> -60000 | F6: =IF(E6<=0,0,IF(B6="",D6/(1+$E$3)^C6,E6)) -> 0 | G6: =IF(E6>=0,0,IF(B6="",D6/(1+$E$3)^C6,E6)) -> -60000 | H6: =IF(C6-B6<=0,D6,IF(B6="",D6,D6*(C6-B6+1))) -> -60000
A7: Salvage | B7: 20 | D7: =-D6*(1-2/B7)^B7 -> 7294.599275 | E7: =IF(C7-B7<=0,D7/(1+$E$3)^B7,(PV($E$3,C7-B7+1,-D7)/(1+$E$3)^(B7-1))) -> 2274.490535 | F7: 2274.490535 | G7: 0 | H7: 7294.599275
A8: Repairs | B8: 1 | C8: 20 | D8: =2%*D6 -> -1200 | E8: -13763.90546 | F8: 0 | G8: -13763.90546 | H8: -24000
A9: Taxes/Insurance | B9: 1 | C9: 20 | D9: =1.5%*D6 -> -900 | E9: -10322.9291 | F9: 0 | G9: -10322.9291 | H9: -18000
E10: 0 | F10: 0 | G10: 0 | H10: 0
E11: 0 | F11: 0 | G11: 0 | H11: 0
E12: 0 | F12: 0 | G12: 0 | H12: 0
E13: 0 | F13: 0 | G13: 0 | H13: 0
E14: 0 | F14: 0 | G14: 0 | H14: 0
E15: 0 | F15: 0 | G15: 0 | H15: 0
E16: 0 | F16: 0 | G16: 0 | H16: 0
E17: 0 | F17: 0 | G17: 0 | H17: 0
E18: 0 | F18: 0 | G18: 0 | H18: 0
E19: 0 | F19: 0 | G19: 0 | H19: 0
A20: Net PV | C20: =IF(F3=1,"Net/Yr",IF(F3=4,"Net/Qtr",IF(F3=12,"Net/Mo","Net/Period"))) -> Net/Yr | D20: Net AV | E20: =MAX(MAX(B6:B19),MAX(C6:C19)) -> 20 | F20: Net FV | G20: B/C Ratio | H20: Net Cash
A21: =SUM(F6:F19)+SUM(G6:G19) -> -81812.34402 | C21: =A21*E3*(1+E3)^E20/((1+E3)^E20-1) -> -7132.772969 | D21: =C21*((1+E3)^F3-1)/E3 -> -7132.772969 | F21: =A21*(1+E3)^E20 -> -262383.2706 | G21: =IF(SUM(G6:G19)=0,NA(),SUM(F6:F19)/SUM(G6:G19)*(-1)) -> 0.02704930619 | H21: =SUM(H6:H19) -> -94705.40072
A30: DECISION ANALYSIS 4 | H30: IRR = CTRL-x
F31: =IF(F32=1,"Annual",IF(F32=4,"Quarterly",IF(F32=12,"Monthly",""))) -> Annual
B32: Minimum % Return: | C32: 6 | D32: Periods/Yr: | E32: =C32/F32/100 -> 0.06 | F32: 1 | G32: Effective => | H32: =(1+E32)^F32-1 -> 0.06
A34: Item | B34: First | C34: Last | D34: Dollars | F34: PV Rec. | G34: PV Exp. | H34: Cash
A35: Unloader | B35: 0 | D35: -6800 | E35: =IF(C35-B35<=0,D35/(1+$E$32)^B35,(PV($E$32,C35-B35+1,-D35)/(1+$E$32)^(B35-1))) -> -6800 | F35: =IF(E35<=0,0,IF(B35="",D35/(1+$E$32)^C35,E35)) -> 0 | G35: =IF(E35>=0,0,IF(B35="",D35/(1+$E$32)^C35,E35)) -> -6800 | H35: =IF(C35-B35<=0,D35,IF(B35="",D35,D35*(C35-B35+1))) -> -6800
A36: Salvage | D36: 0 | E36: =IF(C36-B36<=0,D36/(1+$E$32)^B36,(PV($E$32,C36-B36+1,-D36)/(1+$E$32)^(B36-1))) -> 0 | F36: =IF(E36<=0,0,IF(B36="",D36/(1+$E$32)^C36,E36)) -> 0 | G36: =IF(E36>=0,0,IF(B36="",D36/(1+$E$32)^C36,E36)) -> 0 | H36: 0
A37: Repairs | B37: 1 | C37: 8 | D37: =5%*D35 -> -340 | E37: -2111.329896 | F37: 0 | G37: -2111.329896 | H37: -2720
A38: Taxes/Insurance | B38: 1 | C38: 8 | D38: =1.5%*D35 -> -102 | E38: -633.3989687 | F38: 0 | G38: -633.3989687 | H38: -816
E39: 0 | F39: 0 | G39: 0 | H39: 0
E40: 0 | F40: 0 | G40: 0 | H40: 0
E41: 0 | F41: 0 | G41: 0 | H41: 0
E42: 0 | F42: 0 | G42: 0 | H42: 0
E43: 0 | F43: 0 | G43: 0 | H43: 0
E44: 0 | F44: 0 | G44: 0 | H44: 0
E45: 0 | F45: 0 | G45: 0 | H45: 0
E46: 0 | F46: 0 | G46: 0 | H46: 0
E47: 0 | F47: 0 | G47: 0 | H47: 0
E48: 0 | F48: 0 | G48: 0 | H48: 0
A49: Net PV | C49: =IF(F32=1,"Net/Yr",IF(F32=4,"Net/Qtr",IF(F32=12,"Net/Mo","Net/Period"))) -> Net/Yr | D49: Net AV | E49: =MAX(MAX(B35:B48),MAX(C35:C48)) -> 8 | F49: Net FV | G49: B/C Ratio | H49: Net Cash
A50: =SUM(F35:F48)+SUM(G35:G48) -> -9544.728864 | C50: =A50*E32*(1+E32)^E49/((1+E32)^E49-1) -> -1537.04441 | D50: =C50*((1+E32)^F32-1)/E32 -> -1537.04441 | F50: =A50*(1+E32)^E49 -> -15212.84772 | G50: =IF(SUM(G35:G48)=0,NA(),SUM(F35:F48)/SUM(G35:G48)*(-1)) -> 0 | H50: =SUM(H35:H48) -> -10336

Sheet Long Decal
A1: DECISION ANALYSIS 5 | H1: IRR = CTRL-y
F2: =IF(F3=1,"Annual",IF(F3=4,"Quarterly",IF(F3=12,"Monthly",""))) -> Annual
B3: Minimum % Return: | C3: 6 | D3: Periods/Yr: | E3: =C3/F3/100 -> 0.06 | F3: 1 | G3: Effective => | H3: =(1+E3)^F3-1 -> 0.06
A5: Item | B5: First | C5: Last | D5: Dollars | F5: PV Rec. | G5: PV Exp. | H5: Cash
A6: Investment | B6: 0 | D6: -60000 | E6: =IF(C6-B6<=0,D6/(1+$E$3)^B6,(PV($E$3,C6-B6+1,-D6)/(1+$E$3)^(B6-1))) -> -60000 | F6: =IF(E6<=0,0,IF(B6="",D6/(1+$E$3)^C6,E6)) -> 0 | G6: =IF(E6>=0,0,IF(B6="",D6/(1+$E$3)^C6,E6)) -> -60000 | H6: =IF(C6-B6<=0,D6,IF(B6="",D6,D6*(C6-B6+1))) -> -60000
A7: Salvage | B7: 20 | D7: =-D6*(1-2/B7)^B7 -> 7294.599275 | E7: 2274.490535 | F7: 2274.490535 | G7: 0 | H7: 7294.599275
A8: Income | B8: 1 | C8: 20 | D8: 7500 | E8: 86024.40914 | F8: 86024.40914 | G8: 0 | H8: 150000
A9: Expenses | B9: 1 | C9: 10 | D9: =1.5%*D6 -> -900 | E9: -6624.078346 | F9: 0 | G9: -6624.078346 | H9: -9000
A10: Expenses | B10: 11 | C10: 20 | D10: -1100 | E10: -4520.817584 | F10: 0 | G10: -4520.817584 | H10: -11000
E11: 0 | F11: 0 | G11: 0 | H11: 0
E12: 0 | F12: 0 | G12: 0 | H12: 0
E13: 0 | F13: 0 | G13: 0 | H13: 0
E14: 0 | F14: 0 | G14: 0 | H14: 0
E15: 0 | F15: 0 | G15: 0 | H15: 0
E16: 0 | F16: 0 | G16: 0 | H16: 0
E17: =IF(C17-B17<=0,D17/(1+$E$3)^B17,(PV($E$3,C17-B17+1,-D17)/(1+$E$3)^(B17-1))) -> 0 | F17: =IF(E17<=0,0,IF(B17="",D17/(1+$E$3)^C17,E17)) -> 0 | G17: =IF(E17>=0,0,IF(B17="",D17/(1+$E$3)^C17,E17)) -> 0 | H17: =IF(C17-B17<=0,D17,IF(B17="",D17,D17*(C17-B17+1))) -> 0
E18: 0 | F18: 0 | G18: 0 | H18: 0
E19: 0 | F19: 0 | G19: 0 | H19: 0
E20: 0 | F20: 0 | G20: 0 | H20: 0
E21: 0 | F21: 0 | G21: 0 | H21: 0
E22: 0 | F22: 0 | G22: 0 | H22: 0
E23: 0 | F23: 0 | G23: 0 | H23: 0
E24: 0 | F24: 0 | G24: 0 | H24: 0
E25: 0 | F25: 0 | G25: 0 | H25: 0
E26: 0 | F26: 0 | G26: 0 | H26: 0
E27: 0 | F27: 0 | G27: 0 | H27: 0
E28: =IF(C28-B28<=0,D28/(1+$E$3)^B28,(PV($E$3,C28-B28+1,-D28)/(1+$E$3)^(B28-1))) -> 0 | F28: =IF(E28<=0,0,IF(B28="",D28/(1+$E$3)^C28,E28)) -> 0 | G28: =IF(E28>=0,0,IF(B28="",D28/(1+$E$3)^C28,E28)) -> 0 | H28: =IF(C28-B28<=0,D28,IF(B28="",D28,D28*(C28-B28+1))) -> 0
E29: 0 | F29: 0 | G29: 0 | H29: 0
E30: 0 | F30: 0 | G30: 0 | H30: 0
E31: 0 | F31: 0 | G31: 0 | H31: 0
E32: 0 | F32: 0 | G32: 0 | H32: 0
E33: 0 | F33: 0 | G33: 0 | H33: 0
E34: 0 | F34: 0 | G34: 0 | H34: 0
E35: 0 | F35: 0 | G35: 0 | H35: 0
E36: 0 | F36: 0 | G36: 0 | H36: 0
E37: 0 | F37: 0 | G37: 0 | H37: 0
E38: 0 | F38: 0 | G38: 0 | H38: 0
E39: 0 | F39: 0 | G39: 0 | H39: 0
E40: 0 | F40: 0 | G40: 0 | H40: 0
E41: 0 | F41: 0 | G41: 0 | H41: 0
E42: 0 | F42: 0 | G42: 0 | H42: 0
E43: 0 | F43: 0 | G43: 0 | H43: 0
E44: 0 | F44: 0 | G44: 0 | H44: 0
E45: 0 | F45: 0 | G45: 0 | H45: 0
E46: =IF(C46-B46<=0,D46/(1+$E$3)^B46,(PV($E$3,C46-B46+1,-D46)/(1+$E$3)^(B46-1))) -> 0 | F46: =IF(E46<=0,0,IF(B46="",D46/(1+$E$3)^C46,E46)) -> 0 | G46: =IF(E46>=0,0,IF(B46="",D46/(1+$E$3)^C46,E46)) -> 0 | H46: =IF(C46-B46<=0,D46,IF(B46="",D46,D46*(C46-B46+1))) -> 0
E47: =IF(C47-B47<=0,D47/(1+$E$3)^B47,(PV($E$3,C47-B47+1,-D47)/(1+$E$3)^(B47-1))) -> 0 | F47: =IF(E47<=0,0,IF(B47="",D47/(1+$E$3)^C47,E47)) -> 0 | G47: =IF(E47>=0,0,IF(B47="",D47/(1+$E$3)^C47,E47)) -> 0 | H47: =IF(C47-B47<=0,D47,IF(B47="",D47,D47*(C47-B47+1))) -> 0
E48: =IF(C48-B48<=0,D48/(1+$E$3)^B48,(PV($E$3,C48-B48+1,-D48)/(1+$E$3)^(B48-1))) -> 0 | F48: =IF(E48<=0,0,IF(B48="",D48/(1+$E$3)^C48,E48)) -> 0 | G48: =IF(E48>=0,0,IF(B48="",D48/(1+$E$3)^C48,E48)) -> 0 | H48: =IF(C48-B48<=0,D48,IF(B48="",D48,D48*(C48-B48+1))) -> 0
A49: Net PV | C49: =IF(F3=1,"Net/Yr",IF(F3=4,"Net/Qtr",IF(F3=12,"Net/Mo","Net/Period"))) -> Net/Yr | D49: Net AV | E49: =MAX(MAX(B6:B48),MAX(C6:C48)) -> 20 | F49: Net FV | G49: B/C Ratio | H49: Net Cash
A50: =SUM(F6:F48)+SUM(G6:G48) -> 17154.00374 | C50: =A50*E3*(1+E3)^E49/((1+E3)^E49-1) -> 1495.564217 | D50: =C50*((1+E3)^F3-1)/E3 -> 1495.564217 | F50: =A50*(1+E3)^E49 -> 55015.2139 | G50: =IF(SUM(G6:G48)=0,NA(),SUM(F6:F48)/SUM(G6:G48)*(-1)) -> 1.241113625 | H50: =SUM(H6:H48) -> 77294.59928

Sheet Instructions
D1: INPUT | F1: <PgDn> for Output Interpretation
A3: Minimum % return - Enter as an annual percentage rate (%, not decimal)
A4: This is the desired rate of return
A5: Often known as discount rate or opportunity cost
A7: Periods per year - Annual basis would be 1, monthly 12
A8: If monthly, the end of year 1 is period 12
A10: Note: For listing of receipts and expenses, today is period 0
A11: First period is the first period in a sequence
A12: Last period is the last period in a sequence
A14: Examples: | F14: First Per | G14: Last Per | H14: Dollars
A15: Initial purchase of $1,000 | F15: 0 | H15: -1000
A16: Salvage value of 200 end of yr 5 | F16: 5 | H16: 200
A17: Expenses of 75 each year 1-5 | F17: 1 | G17: 5 | H17: -75
A18: Receipts of 700 each year 3-5 | F18: 3 | G18: 5 | H18: 700
A20: Receipts are entered as positive numbers, expenses negative
A21: IRR is a macro which replaces the %I with the IRR when CTRL-I is pressed
D23: OUTPUT
A24: Effective - Annual % effective interest if compounded by periods
A25: Net PV - (Net Present Value) Sum of discounted receipts and expenses at %I
A26: Net AV - (Net Annual Value) Net PV amortized over the highest year; $ Return/yr
A27: Net Per - (Net Period Value) A return per period if periods are not annual
A28: Net FV - Net Future Value at end of analysis, considering compounding
A29: B/C Ratio - (Benefit/Cost) PV of receipts divided by PV of expenses
A30: Net Cash - Sum of cash receipts and expenses, no interest considered
A31: IRR - Internal or Realized rate of return; %i which makes NPV=0
A33: Interpretation: | D33: Net PV,AV,FV | F33: B/C Ratio | H33: IRR
B34: Profit ==> | D34: Greater than 0 | F34: Greater than 1.0 | H34: Greater than %I
B36: Breakeven => | D36: Equal to 0 | F36: Equal to 1.0 | H36: Equal to %I
B38: Loss ====> | D38: Less than 0 | F38: Less than 1.0 | H38: Less than %I
A39: Breakeven earns the interest; a loss may still exceed 0% return (IRR) if net cash>0
